[Event "Titled Tuesday Blitz June 13 Early 2023"]
[White "Souleidis, Georgios"]
[Black "Hristodoulou, Panagiotis"]
[WhiteFideId "4206827"]
[BlackFideId "4214340"]
[WhiteElo "2401"]
[BlackElo "2272"]
[Result "1-0"]
[Round "5"]
[TimeControl "180+2"]
[Date "2023.06.13"]
[WhiteClock "0:00:55"]
[BlackClock "0:00:06"]
[Board "95"]

1. e4 {[%clk 0:02:59]}  e5 {[%clk 0:02:51]} 2. Nc3 {[%clk 0:02:59]}  Nf6 {[%clk 0:02:46]} 3. d4 {[%clk 0:02:58]}  exd4 {[%clk 0:02:42]} 4. Qxd4 {[%clk 0:02:59]}  Nc6 {[%clk 0:02:42]} 5. Qd3 {[%clk 0:02:58]}  d6 {[%clk 0:02:40]} 6. Bg5 {[%clk 0:02:57]}  Be7 {[%clk 0:02:39]} 7. O-O-O {[%clk 0:02:52]}  Be6 {[%clk 0:02:39]} 8. Kb1 {[%clk 0:02:51]}  Qd7 {[%clk 0:02:38]} 9. f4 {[%clk 0:02:47]}  Bg4 {[%clk 0:02:32]} 10. Nf3 {[%clk 0:02:46]}  O-O-O {[%clk 0:02:29]} 11. h3 {[%clk 0:02:43]}  Bxf3 {[%clk 0:02:28]} 12. Qxf3 {[%clk 0:02:44]}  h6 {[%clk 0:02:28]} 13. Bxf6 {[%clk 0:02:24]}  Bxf6 {[%clk 0:02:27]} 14. Bb5 {[%clk 0:02:22]}  a6 {[%clk 0:02:21]} 15. Ba4 {[%clk 0:02:19]}  Kb8 {[%clk 0:02:06]} 16. e5 {[%clk 0:02:13]}  Be7 {[%clk 0:02:06]} 17. Nd5 {[%clk 0:02:06]}  b5 {[%clk 0:02:01]} 18. Nxe7 {[%clk 0:01:49]}  Nxe7 {[%clk 0:02:00]} 19. Bb3 {[%clk 0:01:49]}  Nc6 {[%clk 0:01:58]} 20. exd6 {[%clk 0:01:46]}  cxd6 {[%clk 0:01:58]} 21. Bxf7 {[%clk 0:01:40]}  Rhf8 {[%clk 0:01:56]} 22. Bd5 {[%clk 0:01:38]}  Ne7 {[%clk 0:01:43]} 23. Rhe1 {[%clk 0:01:27]}  Nxd5 {[%clk 0:01:33]} 24. Rxd5 {[%clk 0:01:28]}  Rde8 {[%clk 0:01:31]} 25. Red1 {[%clk 0:01:26]}  Rf6 {[%clk 0:01:31]} 26. g4 {[%clk 0:01:21]}  Qc6 {[%clk 0:01:21]} 27. Qd3 {[%clk 0:01:00]}  Kc7 {[%clk 0:00:24]} 28. f5 {[%clk 0:00:59]}  Re7 {[%clk 0:00:14]} 29. b3 {[%clk 0:00:55]}  Rd7 {[%clk 0:00:06]} 1-0


[Site "https://www.chess.com"]

[Event "Titled Tuesday Blitz June 13 Early 2023"]
[White "Radzhabov, Rodion"]
[Black "Kovalevsky, Stanislav"]
[WhiteFideId "884715"]
[BlackFideId "13508598"]
[WhiteElo "2174"]
[BlackElo "2112"]
[Result "0-1"]
[Round "5"]
[TimeControl "180+2"]
[Date "2023.06.13"]
[WhiteClock "0:00:00"]
[BlackClock "0:00:57"]
[Board "96"]

1. e4 {[%clk 0:02:59]}  e6 {[%clk 0:03:00]} 2. Nc3 {[%clk 0:02:57]}  d5 {[%clk 0:03:00]} 3. Qe2 {[%clk 0:02:57]}  d4 {[%clk 0:03:00]} 4. Nd1 {[%clk 0:02:57]}  c5 {[%clk 0:03:00]} 5. g3 {[%clk 0:02:54]}  Nc6 {[%clk 0:03:01]} 6. d3 {[%clk 0:02:51]}  Nf6 {[%clk 0:02:59]} 7. f4 {[%clk 0:02:50]}  h5 {[%clk 0:02:57]} 8. Nf3 {[%clk 0:02:46]}  Be7 {[%clk 0:02:50]} 9. Bg2 {[%clk 0:02:39]}  Nd7 {[%clk 0:02:36]} 10. e5 {[%clk 0:02:30]}  h4 {[%clk 0:02:36]} 11. Nf2 {[%clk 0:02:18]}  Nb6 {[%clk 0:02:33]} 12. O-O {[%clk 0:01:47]}  Nd5 {[%clk 0:02:23]} 13. Ne4 {[%clk 0:01:32]}  b6 {[%clk 0:02:16]} 14. c4 {[%clk 0:01:30]}  dxc3 {[%clk 0:02:15]} 15. bxc3 {[%clk 0:01:29]}  Bb7 {[%clk 0:02:14]} 16. c4 {[%clk 0:01:19]}  Ndb4 {[%clk 0:02:12]} 17. Rd1 {[%clk 0:01:04]}  hxg3 {[%clk 0:02:01]} 18. hxg3 {[%clk 0:01:00]}  Qd7 {[%clk 0:01:52]} 19. a3 {[%clk 0:00:45]}  Na6 {[%clk 0:01:50]} 20. Bb2 {[%clk 0:00:42]}  O-O-O {[%clk 0:01:47]} 21. Neg5 {[%clk 0:00:25]}  Bxg5 {[%clk 0:01:37]} 22. fxg5 {[%clk 0:00:13]}  Nd4 {[%clk 0:01:26]} 23. Nxd4 {[%clk 0:00:11]}  cxd4 {[%clk 0:01:27]} 24. Bxb7+ {[%clk 0:00:09]}  Qxb7 {[%clk 0:01:27]} 25. Qg2 {[%clk 0:00:10]}  Nc5 {[%clk 0:01:23]} 26. Qxb7+ {[%clk 0:00:09]}  Kxb7 {[%clk 0:01:24]} 27. Kg2 {[%clk 0:00:06]}  Rh5 {[%clk 0:01:23]} 28. g6 {[%clk 0:00:06]}  fxg6 {[%clk 0:01:22]} 29. Bc1 {[%clk 0:00:05]}  Rxe5 {[%clk 0:01:20]} 30. Bf4 {[%clk 0:00:02]}  Re2+ {[%clk 0:01:16]} 31. Kf3 {[%clk 0:00:02]}  Rb2 {[%clk 0:01:14]} 32. Be5 {[%clk 0:00:02]}  Rb3 {[%clk 0:01:05]} 33. Kg4 {[%clk 0:00:02]}  Nxd3 {[%clk 0:01:03]} 34. Bxg7 {[%clk 0:00:02]}  Nf2+ {[%clk 0:01:04]} 35. Kh4 {[%clk 0:00:03]}  Nxd1 {[%clk 0:01:02]} 36. Rxd1 {[%clk 0:00:04]}  Rxa3 {[%clk 0:01:00]} 37. g4 {[%clk 0:00:00]}  d3 {[%clk 0:00:57]} 0-1


[Site "https://www.chess.com"]

[Event "Titled Tuesday Blitz June 13 Early 2023"]
[White "Altman, Joshua"]
[Black "Vyatkin, Dmitry"]
[WhiteFideId "426210"]
[BlackFideId "4171900"]
[WhiteElo "2028"]
[BlackElo "2279"]
[Result "1-0"]
[Round "5"]
[TimeControl "180+2"]
[Date "2023.06.13"]
[WhiteClock "0:01:06"]
[BlackClock "0:01:06"]
[Board "100"]

1. d4 {[%clk 0:03:00]}  Nf6 {[%clk 0:02:59]} 2. c4 {[%clk 0:03:01]}  g6 {[%clk 0:03:00]} 3. Nc3 {[%clk 0:03:01]}  Bg7 {[%clk 0:03:00]} 4. Nf3 {[%clk 0:03:02]}  O-O {[%clk 0:03:00]} 5. Bg5 {[%clk 0:03:01]}  d6 {[%clk 0:02:54]} 6. e3 {[%clk 0:03:01]}  Nbd7 {[%clk 0:02:53]} 7. Be2 {[%clk 0:03:01]}  c6 {[%clk 0:02:53]} 8. Qc2 {[%clk 0:03:01]}  e5 {[%clk 0:02:53]} 9. O-O {[%clk 0:03:01]}  Qe7 {[%clk 0:02:51]} 10. Rfd1 {[%clk 0:03:01]}  h6 {[%clk 0:02:46]} 11. Bh4 {[%clk 0:02:58]}  Re8 {[%clk 0:02:44]} 12. dxe5 {[%clk 0:02:53]}  dxe5 {[%clk 0:02:43]} 13. Nd2 {[%clk 0:02:53]}  Nf8 {[%clk 0:02:06]} 14. Nde4 {[%clk 0:02:35]}  Bf5 {[%clk 0:02:00]} 15. Bd3 {[%clk 0:02:27]}  Bxe4 {[%clk 0:01:53]} 16. Nxe4 {[%clk 0:02:22]}  N8h7 {[%clk 0:01:53]} 17. c5 {[%clk 0:02:14]}  g5 {[%clk 0:01:46]} 18. Bg3 {[%clk 0:02:02]}  Nxe4 {[%clk 0:01:46]} 19. Bxe4 {[%clk 0:02:03]}  Nf6 {[%clk 0:01:46]} 20. Bf5 {[%clk 0:02:00]}  Nh5 {[%clk 0:01:41]} 21. Rd7 {[%clk 0:01:54]}  Qf6 {[%clk 0:01:37]} 22. Rad1 {[%clk 0:01:43]}  Nxg3 {[%clk 0:01:34]} 23. hxg3 {[%clk 0:01:43]}  e4 {[%clk 0:01:27]} 24. Bxe4 {[%clk 0:01:37]}  Qxb2 {[%clk 0:01:26]} 25. Bh7+ {[%clk 0:01:22]}  Kh8 {[%clk 0:01:26]} 26. Qxb2 {[%clk 0:01:10]}  Bxb2 {[%clk 0:01:25]} 27. Rxf7 {[%clk 0:01:10]}  Rad8 {[%clk 0:01:06]} 28. Rb1 {[%clk 0:01:06]} 1-0


[Site "https://www.chess.com"]

[Event "Titled Tuesday Blitz June 13 Early 2023"]
[White "Papayan, Oleg"]
[Black "Sourath Biswas"]
[WhiteFideId "4193911"]
[BlackFideId "35091484"]
[WhiteElo "2167"]
[BlackElo "2171"]
[Result "0-1"]
[Round "5"]
[TimeControl "180+2"]
[Date "2023.06.13"]
[WhiteClock "0:00:00"]
[BlackClock "0:00:04"]
[Board "102"]

1. e4 {[%clk 0:03:00]}  c6 {[%clk 0:02:54]} 2. Nc3 {[%clk 0:03:00]}  d5 {[%clk 0:02:55]} 3. Nf3 {[%clk 0:03:01]}  Bg4 {[%clk 0:02:54]} 4. Qe2 {[%clk 0:03:02]}  e6 {[%clk 0:02:17]} 5. exd5 {[%clk 0:03:02]}  cxd5 {[%clk 0:02:11]} 6. Qb5+ {[%clk 0:03:02]}  Nd7 {[%clk 0:02:03]} 7. Qxb7 {[%clk 0:03:03]}  Bxf3 {[%clk 0:02:01]} 8. gxf3 {[%clk 0:03:03]}  Ngf6 {[%clk 0:02:01]} 9. Nb5 {[%clk 0:03:02]}  Rc8 {[%clk 0:01:54]} 10. Nxa7 {[%clk 0:02:55]}  Rxc2 {[%clk 0:01:51]} 11. Nc6 {[%clk 0:01:24]}  Rxc6 {[%clk 0:00:46]} 12. Qxc6 {[%clk 0:01:25]}  Bc5 {[%clk 0:00:44]} 13. Be2 {[%clk 0:01:06]}  O-O {[%clk 0:00:43]} 14. d3 {[%clk 0:00:54]}  Qa5+ {[%clk 0:00:28]} 15. Bd2 {[%clk 0:00:53]}  Bxf2+ {[%clk 0:00:25]} 16. Kxf2 {[%clk 0:00:44]}  Qxd2 {[%clk 0:00:25]} 17. Qc3 {[%clk 0:00:44]}  Qf4 {[%clk 0:00:26]} 18. Rag1 {[%clk 0:00:27]}  h5 {[%clk 0:00:25]} 19. h3 {[%clk 0:00:25]}  Qh4+ {[%clk 0:00:16]} 20. Kf1 {[%clk 0:00:23]}  Rb8 {[%clk 0:00:14]} 21. Rg2 {[%clk 0:00:22]}  d4 {[%clk 0:00:12]} 22. Qe1 {[%clk 0:00:15]}  Qf4 {[%clk 0:00:05]} 23. Bd1 {[%clk 0:00:13]}  Nd5 {[%clk 0:00:04]} 24. Rf2 {[%clk 0:00:02]}  Ne3+ {[%clk 0:00:04]} 25. Ke2 {[%clk 0:00:02]}  Ne5 {[%clk 0:00:05]} 26. Qd2 {[%clk 0:00:01]}  Qf5 {[%clk 0:00:04]} 27. Rhh2 {[%clk 0:00:01]}  Ng6 {[%clk 0:00:04]} 28. f4 {[%clk 0:00:01]}  Nxf4+ {[%clk 0:00:05]} 29. Ke1 {[%clk 0:00:00]}  Nxd3+ {[%clk 0:00:04]} 0-1


[Site "https://www.chess.com"]

[Event "Titled Tuesday Blitz June 13 Early 2023"]
[White "Goncalves, Davi Sulzbacher"]
[Black "Ibadov, Dashgyn"]
[WhiteFideId "2154510"]
[BlackFideId "24107514"]
[WhiteElo "2182"]
[BlackElo "2208"]
[Result "0-1"]
[Round "5"]
[TimeControl "180+2"]
[Date "2023.06.13"]
[WhiteClock "0:00:03"]
[BlackClock "0:00:42"]
[Board "107"]

1. e4 {[%clk 0:02:57]}  e6 {[%clk 0:03:00]} 2. d4 {[%clk 0:02:57]}  d5 {[%clk 0:03:01]} 3. e5 {[%clk 0:02:57]}  c5 {[%clk 0:03:01]} 4. c3 {[%clk 0:02:58]}  Qb6 {[%clk 0:03:01]} 5. Nf3 {[%clk 0:02:58]}  Nc6 {[%clk 0:03:02]} 6. a3 {[%clk 0:02:57]}  Nh6 {[%clk 0:03:02]} 7. b4 {[%clk 0:02:54]}  cxd4 {[%clk 0:03:02]} 8. cxd4 {[%clk 0:02:54]}  Nf5 {[%clk 0:03:02]} 9. Bb2 {[%clk 0:02:41]}  Be7 {[%clk 0:03:00]} 10. Bd3 {[%clk 0:02:39]}  O-O {[%clk 0:02:51]} 11. O-O {[%clk 0:02:37]}  Na5 {[%clk 0:02:45]} 12. Nbd2 {[%clk 0:02:29]}  Bd7 {[%clk 0:02:30]} 13. bxa5 {[%clk 0:01:58]}  Qxb2 {[%clk 0:02:30]} 14. Rb1 {[%clk 0:01:59]}  Qxa3 {[%clk 0:02:28]} 15. Bxf5 {[%clk 0:01:59]}  exf5 {[%clk 0:02:28]} 16. Rxb7 {[%clk 0:02:00]}  Rfd8 {[%clk 0:02:04]} 17. Qb3 {[%clk 0:01:39]}  Qxa5 {[%clk 0:01:59]} 18. Rc1 {[%clk 0:01:34]}  Bf8 {[%clk 0:01:39]} 19. h3 {[%clk 0:01:23]}  Rac8 {[%clk 0:01:35]} 20. Rxc8 {[%clk 0:00:57]}  Bxc8 {[%clk 0:01:36]} 21. Rb5 {[%clk 0:00:56]}  Qa1+ {[%clk 0:01:35]} 22. Kh2 {[%clk 0:00:55]}  a5 {[%clk 0:01:19]} 23. Qc2 {[%clk 0:00:30]}  Be6 {[%clk 0:01:13]} 24. Qc7 {[%clk 0:00:23]}  Rc8 {[%clk 0:01:10]} 25. Qxa5 {[%clk 0:00:22]}  Qd1 {[%clk 0:00:58]} 26. Rxd5 {[%clk 0:00:19]}  Bxd5 {[%clk 0:00:51]} 27. Qxd5 {[%clk 0:00:19]}  f4 {[%clk 0:00:51]} 28. Ng5 {[%clk 0:00:18]}  Rc7 {[%clk 0:00:51]} 29. Ndf3 {[%clk 0:00:17]}  h6 {[%clk 0:00:50]} 30. e6 {[%clk 0:00:08]}  Rc1 {[%clk 0:00:42]} 31. exf7+ {[%clk 0:00:03]}  Kh8 {[%clk 0:00:42]} 0-1


[Site "https://www.chess.com"]

[Event "Titled Tuesday Blitz June 13 Early 2023"]
[White "Lopez, Nelson M, Ii"]
[Black "Perez, Maximiliano"]
[WhiteFideId "2027895"]
[BlackFideId "117234"]
[WhiteElo "2448"]
[BlackElo "2334"]
[Result "0-1"]
[Round "5"]
[TimeControl "180+2"]
[Date "2023.06.13"]
[WhiteClock "0:00:34"]
[BlackClock "0:02:09"]
[Board "108"]

1. e4 {[%clk 0:03:00]}  c5 {[%clk 0:02:59]} 2. Nf3 {[%clk 0:02:59]}  Nc6 {[%clk 0:03:00]} 3. Bb5 {[%clk 0:02:59]}  g6 {[%clk 0:02:59]} 4. O-O {[%clk 0:02:59]}  Bg7 {[%clk 0:03:00]} 5. Nc3 {[%clk 0:02:59]}  Nf6 {[%clk 0:02:55]} 6. e5 {[%clk 0:02:59]}  Ng4 {[%clk 0:02:55]} 7. Bxc6 {[%clk 0:02:59]}  bxc6 {[%clk 0:02:52]} 8. Re1 {[%clk 0:03:00]}  O-O {[%clk 0:02:51]} 9. h3 {[%clk 0:03:00]}  Nh6 {[%clk 0:02:52]} 10. d3 {[%clk 0:03:01]}  f6 {[%clk 0:02:49]} 11. exf6 {[%clk 0:02:47]}  exf6 {[%clk 0:02:49]} 12. Bf4 {[%clk 0:02:42]}  Nf7 {[%clk 0:02:47]} 13. Ne4 {[%clk 0:02:39]}  d6 {[%clk 0:02:46]} 14. Qd2 {[%clk 0:02:30]}  g5 {[%clk 0:02:45]} 15. Bh2 {[%clk 0:02:22]}  h6 {[%clk 0:02:45]} 16. Ng3 {[%clk 0:02:08]}  f5 {[%clk 0:02:44]} 17. d4 {[%clk 0:01:58]}  g4 {[%clk 0:02:28]} 18. dxc5 {[%clk 0:01:32]}  gxf3 {[%clk 0:02:25]} 19. gxf3 {[%clk 0:01:29]}  f4 {[%clk 0:02:24]} 20. Ne4 {[%clk 0:01:25]}  d5 {[%clk 0:02:22]} 21. Nc3 {[%clk 0:01:20]}  Ng5 {[%clk 0:02:22]} 22. Kh1 {[%clk 0:01:14]}  Nxf3 {[%clk 0:02:19]} 23. Qd3 {[%clk 0:01:09]}  Nxe1 {[%clk 0:02:19]} 24. Rxe1 {[%clk 0:01:08]}  Bf5 {[%clk 0:02:19]} 25. Qf3 {[%clk 0:01:06]}  Bxc3 {[%clk 0:02:14]} 26. Qxc3 {[%clk 0:01:00]}  Be4+ {[%clk 0:02:14]} 27. f3 {[%clk 0:01:01]}  Bg6 {[%clk 0:02:13]} 28. Rg1 {[%clk 0:01:02]}  Kh7 {[%clk 0:02:12]} 29. Qe5 {[%clk 0:00:55]}  Qf6 {[%clk 0:02:10]} 30. Qc7+ {[%clk 0:00:39]}  Rf7 {[%clk 0:02:10]} 31. Qd6 {[%clk 0:00:39]}  Qxd6 {[%clk 0:02:09]} 32. cxd6 {[%clk 0:00:34]}  Rd8 {[%clk 0:02:09]} 0-1


[Site "https://www.chess.com"]

[Event "Titled Tuesday Blitz June 13 Early 2023"]
[White "Mogirzan, Matei-Valeriu"]
[Black "Dixit, Nikhil"]
[WhiteFideId "1257455"]
[BlackFideId "5059534"]
[WhiteElo "1733"]
[BlackElo "2207"]
[Result "1-0"]
[Round "5"]
[TimeControl "180+2"]
[Date "2023.06.13"]
[WhiteClock "0:01:19"]
[BlackClock "0:00:55"]
[Board "111"]

1. e4 {[%clk 0:03:00]}  c5 {[%clk 0:02:32]} 2. Nf3 {[%clk 0:02:59]}  Nc6 {[%clk 0:02:32]} 3. Bb5 {[%clk 0:02:44]}  e6 {[%clk 0:02:31]} 4. O-O {[%clk 0:02:43]}  Nge7 {[%clk 0:02:26]} 5. Nc3 {[%clk 0:02:43]}  a6 {[%clk 0:02:12]} 6. Bxc6 {[%clk 0:02:43]}  bxc6 {[%clk 0:02:13]} 7. d4 {[%clk 0:02:43]}  Ng6 {[%clk 0:02:09]} 8. d5 {[%clk 0:02:36]}  cxd5 {[%clk 0:01:27]} 9. exd5 {[%clk 0:02:36]}  Be7 {[%clk 0:01:27]} 10. d6 {[%clk 0:02:26]}  Bf6 {[%clk 0:01:26]} 11. Ne4 {[%clk 0:02:17]}  Bb7 {[%clk 0:01:22]} 12. Nxc5 {[%clk 0:02:02]}  Bc6 {[%clk 0:01:19]} 13. Nd4 {[%clk 0:01:55]}  Qb6 {[%clk 0:01:12]} 14. Ncb3 {[%clk 0:01:32]}  a5 {[%clk 0:01:01]} 15. Be3 {[%clk 0:01:27]}  a4 {[%clk 0:00:59]} 16. Nxe6 {[%clk 0:01:23]}  Qxe3 {[%clk 0:00:55]} 17. Nc7+ {[%clk 0:01:19]} 1-0


[Site "https://www.chess.com"]

[Event "Titled Tuesday Blitz June 13 Early 2023"]
[White "Nikologorsky, Matfei"]
[Black "Pinheiro, Iung Alicio de O."]
[WhiteFideId "24102474"]
[BlackFideId "2104350"]
[WhiteElo "2153"]
[BlackElo "2283"]
[Result "0-1"]
[Round "5"]
[TimeControl "180+2"]
[Date "2023.06.13"]
[WhiteClock "0:00:04"]
[BlackClock "0:00:05"]
[Board "119"]

1. e4 {[%clk 0:02:55]}  e5 {[%clk 0:02:58]} 2. Nf3 {[%clk 0:02:55]}  Nc6 {[%clk 0:02:58]} 3. Bb5 {[%clk 0:02:55]}  a6 {[%clk 0:02:56]} 4. Ba4 {[%clk 0:02:55]}  d6 {[%clk 0:02:57]} 5. O-O {[%clk 0:02:54]}  Bd7 {[%clk 0:02:56]} 6. c3 {[%clk 0:02:54]}  Nge7 {[%clk 0:02:55]} 7. d4 {[%clk 0:02:52]}  Ng6 {[%clk 0:02:55]} 8. b4 {[%clk 0:02:31]}  Be7 {[%clk 0:02:51]} 9. Bxc6 {[%clk 0:02:23]}  Bxc6 {[%clk 0:02:45]} 10. d5 {[%clk 0:02:23]}  Bb5 {[%clk 0:02:40]} 11. Re1 {[%clk 0:02:24]}  O-O {[%clk 0:02:40]} 12. a4 {[%clk 0:02:23]}  Bd7 {[%clk 0:02:40]} 13. Nbd2 {[%clk 0:02:16]}  f5 {[%clk 0:02:39]} 14. exf5 {[%clk 0:02:16]}  Bxf5 {[%clk 0:02:40]} 15. Nf1 {[%clk 0:02:15]}  Bg4 {[%clk 0:02:34]} 16. N1d2 {[%clk 0:01:50]}  Nh4 {[%clk 0:02:27]} 17. h3 {[%clk 0:01:44]}  Nxf3+ {[%clk 0:02:11]} 18. Nxf3 {[%clk 0:01:45]}  Bxf3 {[%clk 0:02:07]} 19. gxf3 {[%clk 0:01:44]}  Bg5 {[%clk 0:01:47]} 20. Re4 {[%clk 0:01:40]}  Bxc1 {[%clk 0:01:32]} 21. Rxc1 {[%clk 0:01:41]}  Qf6 {[%clk 0:01:32]} 22. Kg2 {[%clk 0:01:38]}  Rf7 {[%clk 0:01:19]} 23. c4 {[%clk 0:01:31]}  Raf8 {[%clk 0:01:18]} 24. Rc3 {[%clk 0:01:32]}  h5 {[%clk 0:01:11]} 25. c5 {[%clk 0:01:23]}  Qg6+ {[%clk 0:01:03]} 26. Kh2 {[%clk 0:01:11]}  Rf5 {[%clk 0:00:45]} 27. Re1 {[%clk 0:00:58]}  Qf6 {[%clk 0:00:39]} 28. cxd6 {[%clk 0:00:42]}  cxd6 {[%clk 0:00:39]} 29. Ree3 {[%clk 0:00:26]}  Rg5 {[%clk 0:00:29]} 30. Rc4 {[%clk 0:00:26]}  Qg6 {[%clk 0:00:26]} 31. Qf1 {[%clk 0:00:26]}  Kh7 {[%clk 0:00:22]} 32. b5 {[%clk 0:00:26]}  axb5 {[%clk 0:00:21]} 33. axb5 {[%clk 0:00:27]}  Rf6 {[%clk 0:00:21]} 34. b6 {[%clk 0:00:25]}  Qf5 {[%clk 0:00:21]} 35. Rec3 {[%clk 0:00:21]}  Rfg6 {[%clk 0:00:21]} 36. Rc7 {[%clk 0:00:20]}  Qf4+ {[%clk 0:00:19]} 37. Kh1 {[%clk 0:00:20]}  Qh4 {[%clk 0:00:19]} 38. Kh2 {[%clk 0:00:20]}  Qf4+ {[%clk 0:00:13]} 39. Kh1 {[%clk 0:00:19]}  Qf5 {[%clk 0:00:10]} 40. Kh2 {[%clk 0:00:18]}  Qf6 {[%clk 0:00:06]} 41. R7c4 {[%clk 0:00:17]}  Rf5 {[%clk 0:00:06]} 42. Qe2 {[%clk 0:00:14]}  Qg5 {[%clk 0:00:06]} 43. Qf1 {[%clk 0:00:14]}  Rf4 {[%clk 0:00:05]} 44. Rxf4 {[%clk 0:00:14]}  Qxf4+ {[%clk 0:00:06]} 45. Kh1 {[%clk 0:00:14]}  e4 {[%clk 0:00:05]} 46. fxe4 {[%clk 0:00:14]}  Qxe4+ {[%clk 0:00:06]} 47. f3 {[%clk 0:00:15]}  Qxd5 {[%clk 0:00:06]} 48. Qd3 {[%clk 0:00:15]}  Qg5 {[%clk 0:00:05]} 49. Qf1 {[%clk 0:00:13]}  Qd2 {[%clk 0:00:04]} 50. Rd3 {[%clk 0:00:12]}  Qf4 {[%clk 0:00:02]} 51. Rc3 {[%clk 0:00:10]}  Qg3 {[%clk 0:00:02]} 52. Rc4 {[%clk 0:00:09]}  Kh6 {[%clk 0:00:03]} 53. Qc1+ {[%clk 0:00:08]}  Rg5 {[%clk 0:00:03]} 54. Qf1 {[%clk 0:00:09]}  g6 {[%clk 0:00:03]} 55. Re4 {[%clk 0:00:09]}  Rf5 {[%clk 0:00:04]} 56. Re3 {[%clk 0:00:09]}  Qf4 {[%clk 0:00:04]} 57. Rd3 {[%clk 0:00:10]}  Kg5 {[%clk 0:00:04]} 58. Qg2+ {[%clk 0:00:10]}  Kh6 {[%clk 0:00:04]} 59. Rd1 {[%clk 0:00:09]}  Rg5 {[%clk 0:00:03]} 60. Qf2 {[%clk 0:00:08]}  Rg3 {[%clk 0:00:04]} 61. Qd2 {[%clk 0:00:06]}  Rxf3 {[%clk 0:00:03]} 62. Qxf4+ {[%clk 0:00:06]}  Rxf4 {[%clk 0:00:04]} 63. Rxd6 {[%clk 0:00:06]}  Rb4 {[%clk 0:00:05]} 64. Kg2 {[%clk 0:00:06]}  Kg5 {[%clk 0:00:05]} 65. Kg3 {[%clk 0:00:07]}  Rb3+ {[%clk 0:00:05]} 66. Kg2 {[%clk 0:00:07]}  Kf5 {[%clk 0:00:05]} 67. Kh2 {[%clk 0:00:07]}  g5 {[%clk 0:00:05]} 68. Kg2 {[%clk 0:00:07]}  h4 {[%clk 0:00:05]} 69. Kh2 {[%clk 0:00:06]}  Rb2+ {[%clk 0:00:05]} 70. Kg1 {[%clk 0:00:07]}  Kf4 {[%clk 0:00:06]} 71. Kf1 {[%clk 0:00:06]}  Kg3 {[%clk 0:00:06]} 72. Rd5 {[%clk 0:00:06]}  g4 {[%clk 0:00:04]} 73. hxg4 {[%clk 0:00:05]}  h3 {[%clk 0:00:05]} 74. Rd3+ {[%clk 0:00:06]}  Kh4 {[%clk 0:00:05]} 75. Kg1 {[%clk 0:00:05]}  Rxb6 {[%clk 0:00:04]} 76. Rd4 {[%clk 0:00:06]}  Rb2 {[%clk 0:00:04]} 77. Kh1 {[%clk 0:00:05]}  Kg3 {[%clk 0:00:04]} 78. Rd3+ {[%clk 0:00:06]}  Kxg4 {[%clk 0:00:04]} 79. Rd4+ {[%clk 0:00:06]}  Kf5 {[%clk 0:00:05]} 80. Rd8 {[%clk 0:00:06]}  h2 {[%clk 0:00:05]} 81. Rh8 {[%clk 0:00:06]}  b5 {[%clk 0:00:05]} 82. Rf8+ {[%clk 0:00:06]}  Ke5 {[%clk 0:00:05]} 83. Re8+ {[%clk 0:00:07]}  Kd4 {[%clk 0:00:05]} 84. Rd8+ {[%clk 0:00:07]}  Kc5 {[%clk 0:00:06]} 85. Rc8+ {[%clk 0:00:08]}  Kb4 {[%clk 0:00:05]} 86. Rg8 {[%clk 0:00:07]}  Ka4 {[%clk 0:00:05]} 87. Ra8+ {[%clk 0:00:07]}  Kb3 {[%clk 0:00:05]} 88. Rb8 {[%clk 0:00:08]}  b4 {[%clk 0:00:06]} 89. Rc8 {[%clk 0:00:08]}  Ka2 {[%clk 0:00:05]} 90. Ra8+ {[%clk 0:00:09]}  Kb1 {[%clk 0:00:05]} 91. Rc8 {[%clk 0:00:09]}  Rc2 {[%clk 0:00:05]} 92. Rb8 {[%clk 0:00:09]}  Rc4 {[%clk 0:00:05]} 93. Ra8 {[%clk 0:00:09]}  b3 {[%clk 0:00:05]} 94. Rb8 {[%clk 0:00:09]}  b2 {[%clk 0:00:05]} 95. Kxh2 {[%clk 0:00:04]}  Kc2 {[%clk 0:00:05]} 0-1


[Site "https://www.chess.com"]

[Event "Titled Tuesday Blitz June 13 Early 2023"]
[White "Zavgorodniy, Sergiy"]
[Black "Lopez Idarraga, Daniel Eduardo"]
[WhiteFideId "14110148"]
[BlackFideId "4405501"]
[WhiteElo "2402"]
[BlackElo "1980"]
[Result "0-1"]
[Round "5"]
[TimeControl "180+2"]
[Date "2023.06.13"]
[WhiteClock "0:00:12"]
[BlackClock "0:00:32"]
[Board "120"]

1. d4 {[%clk 0:03:00]}  Nf6 {[%clk 0:02:58]} 2. c4 {[%clk 0:02:58]}  g6 {[%clk 0:02:59]} 3. Nc3 {[%clk 0:02:58]}  Bg7 {[%clk 0:02:59]} 4. e4 {[%clk 0:02:58]}  d6 {[%clk 0:03:00]} 5. Be2 {[%clk 0:02:58]}  O-O {[%clk 0:03:01]} 6. Nf3 {[%clk 0:02:59]}  Bg4 {[%clk 0:02:59]} 7. Ng1 {[%clk 0:02:58]}  Bc8 {[%clk 0:02:59]} 8. Nf3 {[%clk 0:02:58]}  Bg4 {[%clk 0:02:59]} 9. O-O {[%clk 0:02:59]}  Nc6 {[%clk 0:02:58]} 10. Be3 {[%clk 0:02:58]}  Nd7 {[%clk 0:02:51]} 11. d5 {[%clk 0:02:57]}  Bxf3 {[%clk 0:02:50]} 12. gxf3 {[%clk 0:02:56]}  Ncb8 {[%clk 0:02:39]} 13. f4 {[%clk 0:02:57]}  Nc5 {[%clk 0:02:38]} 14. f3 {[%clk 0:02:52]}  Nbd7 {[%clk 0:02:37]} 15. h4 {[%clk 0:02:51]}  e6 {[%clk 0:02:17]} 16. Qe1 {[%clk 0:02:38]}  exd5 {[%clk 0:02:14]} 17. cxd5 {[%clk 0:02:36]}  h5 {[%clk 0:01:59]} 18. b4 {[%clk 0:02:32]}  Bxc3 {[%clk 0:01:56]} 19. Qxc3 {[%clk 0:02:31]}  Qxh4 {[%clk 0:01:57]} 20. Bf2 {[%clk 0:02:31]}  Qxf4 {[%clk 0:01:51]} 21. bxc5 {[%clk 0:02:31]}  Nxc5 {[%clk 0:01:52]} 22. Qc1 {[%clk 0:02:24]}  Qf6 {[%clk 0:01:49]} 23. Bxc5 {[%clk 0:02:23]}  dxc5 {[%clk 0:01:50]} 24. Qxc5 {[%clk 0:02:23]}  Qg5+ {[%clk 0:01:46]} 25. Kf2 {[%clk 0:02:18]}  Qh4+ {[%clk 0:01:47]} 26. Ke3 {[%clk 0:02:18]}  Rfe8 {[%clk 0:01:40]} 27. Rad1 {[%clk 0:02:08]}  Qg5+ {[%clk 0:01:14]} 28. f4 {[%clk 0:02:08]}  Qg3+ {[%clk 0:01:12]} 29. Rf3 {[%clk 0:02:07]}  Qh2 {[%clk 0:01:10]} 30. e5 {[%clk 0:02:01]}  g5 {[%clk 0:01:07]} 31. Qxc7 {[%clk 0:01:27]}  Rac8 {[%clk 0:01:04]} 32. Qd6 {[%clk 0:01:18]}  g4 {[%clk 0:01:02]} 33. Rff1 {[%clk 0:01:10]}  Qg3+ {[%clk 0:01:00]} 34. Ke4 {[%clk 0:01:05]}  Qg2+ {[%clk 0:00:58]} 35. Ke3 {[%clk 0:00:47]}  Qg3+ {[%clk 0:00:57]} 36. Ke4 {[%clk 0:00:39]}  Qg2+ {[%clk 0:00:57]} 37. Kf5 {[%clk 0:00:40]}  Qxe2 {[%clk 0:00:55]} 38. Kg5 {[%clk 0:00:36]}  g3 {[%clk 0:00:45]} 39. Kh6 {[%clk 0:00:32]}  g2 {[%clk 0:00:43]} 40. Qf6 {[%clk 0:00:30]}  Qg4 {[%clk 0:00:41]} 41. Rg1 {[%clk 0:00:27]}  h4 {[%clk 0:00:39]} 42. d6 {[%clk 0:00:19]}  Re6 {[%clk 0:00:36]} 43. f5 {[%clk 0:00:12]}  Rxf6+ {[%clk 0:00:35]} 44. exf6 {[%clk 0:00:13]}  h3 {[%clk 0:00:33]} 45. d7 {[%clk 0:00:12]}  Qh4# {[%clk 0:00:32]} 0-1


[Site "https://www.chess.com"]